bitfinex-derivatives/quotes_BTCF0:USTF0_20250114
["timestamp","ask_amount","ask_price","bid_price","bid_amount"]
[1736855366397,1.12549544,96642.0,96641.0,2.91782045]
[1736855366602,1.12549544,96642.0,96641.0,2.71620688]
[1736855366792,1.12549544,96642.0,96641.0,2.66711018]
[1736855367302,1.12549544,96642.0,96641.0,2.41403309]
[1736855370109,1.12549544,96642.0,96641.0,2.1760175]
[1736855370493,1.01774722,96642.0,96641.0,2.1760175]
[1736855371003,1.06950722,96642.0,96641.0,2.1760175]
[1736855373200,0.87815152,96642.0,96641.0,2.1760175]
[1736855373402,0.57016,96642.0,96641.0,2.1760175]
[1736855373704,0.57016,96642.0,96641.0,2.0951375]
[1736855375697,0.85303757,96642.0,96641.0,2.0951375]
[1736855377095,0.85303757,96642.0,96641.0,2.08843396]
[1736855377700,0.55303757,96642.0,96641.0,2.08843396]
[1736855378009,0.85303757,96642.0,96641.0,2.05141396]
[1736855378897,0.55303757,96642.0,96641.0,2.05141396]
[1736855379094,0.85303757,96642.0,96641.0,2.05141396]
[1736855379307,0.55303757,96642.0,96641.0,2.05141396]
[1736855381002,0.50161204,96642.0,96641.0,2.05141396]
[1736855383507,0.81157354,96642.0,96641.0,2.05141396]
[1736855385004,0.70596259,96642.0,96641.0,2.05141396]
[1736855385608,0.70696259,96642.0,96641.0,2.05141396]
[1736855389606,0.81838005,96642.0,96641.0,2.05141396]
[1736855390404,0.81838005,96642.0,96641.0,1.97743396]
[1736855391821,1.11838005,96642.0,96641.0,1.92310281]
[1736855392514,1.11838005,96642.0,96641.0,1.53260222]
[1736855393714,1.11838005,96642.0,96641.0,1.07223786]
[1736855395516,0.74841232,96642.0,96641.0,1.07223786]
[1736855397118,0.74841232,96642.0,96641.0,0.79781227]
[1736855397508,0.44841232,96642.0,96641.0,0.79781227]
[1736855398207,0.44841232,96642.0,96641.0,0.79470119]
[1736855399619,0.33699486,96642.0,96641.0,0.79470119]
[1736855400721,0.33699486,96642.0,96641.0,0.74173968]
[1736855400911,0.33699486,96642.0,96641.0,0.37670409]
[1736855401113,0.63699486,96642.0,96641.0,0.11264524]
[1736855401313,0.63699486,96642.0,96641.0,0.08321268]
[1736855401609,0.63699486,96642.0,96641.0,0.02469744]
[1736855401819,0.051769,96626.0,96625.0,0.0323]
[1736855402014,0.773369,96626.0,96625.0,0.0323]
[1736855402211,0.774369,96626.0,96625.0,0.0323]
[1736855403414,0.94681481,96626.0,96625.0,0.0323]
[1736855405324,0.95742455,96626.0,96625.0,0.0323]
[1736855407121,1.0702136,96626.0,96625.0,0.0323]
[1736855408117,1.0702136,96626.0,96617.0,0.0323]
[1736855408318,0.412573,96618.0,96617.0,0.0323]
[1736855409319,0.413573,96618.0,96617.0,0.0333]
[1736855409826,0.48965508,96618.0,96617.0,0.0333]
[1736855410420,0.48965508,96618.0,96616.0,0.0318]
[1736855410421,0.55067113,96618.0,96616.0,0.01715992]
[1736855410720,0.55067113,96618.0,96601.0,0.0328]
[1736855410721,0.16457105,96602.0,96601.0,0.0328]
[1736855410915,0.88617105,96602.0,96601.0,0.0328]
[1736855411325,0.88617105,96602.0,96601.0,0.066]
[1736855411717,0.96325313,96602.0,96601.0,0.066]
[1736855411913,0.96325313,96602.0,96601.0,0.073]
[1736855413325,0.96325313,96602.0,96601.0,0.076]
[1736855413527,0.9740713,96602.0,96601.0,0.076]
[1736855414722,0.9212893,96602.0,96601.0,0.076]
[1736855414925,0.73531894,96602.0,96601.0,0.076]
[1736855415920,0.73531894,96602.0,96601.0,0.1084]
[1736855418121,0.65923686,96602.0,96601.0,0.1084]
[1736855419017,0.28761869,96602.0,96601.0,0.160182]
[1736855419226,0.23771869,96602.0,96601.0,0.160182]
[1736855419628,0.3608,96616.0,96601.0,0.160182]
[1736855419822,0.3608,96616.0,96601.0,0.1084]
[1736855419823,0.37141875,96616.0,96601.0,0.1084]
[1736855420026,0.37141875,96616.0,96615.0,0.051775]
[1736855421730,0.37141875,96616.0,96615.0,0.052775]
[1736855422225,0.3109,96616.0,96615.0,0.052775]
[1736855422632,0.0015534,96622.0,96615.0,0.052775]
[1736855422821,0.0015534,96622.0,96621.0,0.051771]
[1736855423020,0.60859736,96634.0,96621.0,0.051771]
[1736855423223,0.61905527,96634.0,96622.0,0.051771]
[1736855423431,0.001,96633.0,96627.0,0.051768]
[1736855423929,0.001,96633.0,96622.0,0.0636]
[1736855424130,0.001,96633.0,96629.0,0.051767]
[1736855424325,0.001,96633.0,96630.0,0.051767]
[1736855424634,0.005,96633.0,96630.0,0.051767]
[1736855425123,0.001,96633.0,96630.0,0.051767]
[1736855425323,0.004,96633.0,96630.0,0.051767]
[1736855425521,0.004,96633.0,96632.0,0.051766]
[1736855425727,0.003,96633.0,96632.0,0.051766]
[1736855426928,0.003,96633.0,96630.0,0.3608]
[1736855426929,0.004,96633.0,96630.0,0.3608]
[1736855427525,0.3608,96642.0,96641.0,0.051761]
[1736855427929,0.21895267,96653.0,96641.0,0.051761]
[1736855428130,0.21895267,96653.0,96643.0,0.15477086]
[1736855428437,0.21895267,96653.0,96652.0,0.051755]
[1736855429128,0.00155267,96653.0,96652.0,0.051755]
[1736855429926,0.01199951,96653.0,96652.0,0.051755]
[1736855431436,0.01799951,96653.0,96652.0,0.052755]
[1736855442339,0.32716694,96665.0,96652.0,0.052755]
[1736855442635,0.32716694,96665.0,96662.0,0.051749]
[1736855443034,0.32716694,96665.0,96652.0,0.052755]
[1736855443231,0.3376292,96665.0,96664.0,0.051748]
[1736855444436,0.3376292,96665.0,96664.0,0.052748]
[1736855444832,0.3376292,96665.0,96664.0,0.051748]
[1736855445028,0.3376292,96665.0,96664.0,0.052748]
[1736855446539,0.3376292,96665.0,96664.0,0.001]
[1736855450439,0.3376292,96665.0,96664.0,0.052748]
[1736855450839,0.41366913,96665.0,96664.0,0.051748]
[1736855451142,0.41366913,96665.0,96664.0,0.052748]
[1736855451337,0.41366913,96665.0,96661.0,0.05175]
[1736855451537,0.41366913,96665.0,96652.0,0.051755]
[1736855452048,0.3376292,96665.0,96652.0,0.051755]
[1736855452539,0.3376292,96665.0,96661.0,0.001]
[1736855452947,0.07604067,96664.0,96661.0,0.001]
[1736855454145,0.07604067,96664.0,96660.0,0.05175]
[1736855454341,0.07604067,96663.0,96660.0,0.05175]
[1736855454846,0.07604067,96663.0,96661.0,0.001]
[1736855455041,0.07604067,96663.0,96651.0,0.051755]
[1736855455042,0.05275,96662.0,96651.0,0.051755]
[1736855455245,0.3608,96656.0,96651.0,0.051755]
[1736855455437,0.0317,96655.0,96651.0,0.051755]
[1736855455840,0.0317,96655.0,96640.0,0.15477186]
[1736855456043,0.0317,96655.0,96654.0,0.051754]
[1736855457842,0.3608,96656.0,96655.0,0.051753]
[1736855458343,0.32716694,96665.0,96647.0,0.0325]
[1736855458549,0.32716694,96665.0,96658.0,0.051751]
[1736855458848,0.003,96655.0,96654.0,0.052754]
[1736855459353,0.003,96656.0,96655.0,0.052753]
[1736855460450,0.003,96656.0,96655.0,0.001]
[1736855460950,0.3608,96657.0,96652.0,0.051755]
[1736855461151,0.3608,96657.0,96648.0,0.412557]
[1736855461553,0.0348,96656.0,96655.0,0.001]
[1736855462152,0.0328,96656.0,96652.0,0.001]
[1736855462647,0.0328,96656.0,96649.0,0.051756]
[1736855462855,0.0328,96656.0,96655.0,0.001]
[1736855462856,0.0348,96656.0,96655.0,0.001]
[1736855463854,0.20616727,96656.0,96655.0,0.001]
[1736855464054,0.25792027,96656.0,96655.0,0.001]
[1736855464249,0.20416727,96656.0,96648.0,0.3608]
[1736855464449,0.051754,96655.0,96652.0,0.001]
[1736855464856,0.051754,96655.0,96648.0,0.3608]
[1736855465254,0.22312127,96655.0,96648.0,0.3608]
[1736855465549,0.22512127,96655.0,96652.0,0.001]
[1736855466455,0.17136727,96654.0,96652.0,0.001]
[1736855467355,0.17136727,96654.0,96648.0,0.3608]
[1736855467850,0.07604723,96653.0,96652.0,0.001]
[1736855468059,0.17136727,96653.0,96652.0,0.001]
[1736855468755,0.17136727,96653.0,96648.0,0.3608]
[1736855468949,0.033,96652.0,96648.0,0.3608]
[1736855470448,0.17136727,96651.0,96648.0,0.3608]
[1736855471451,0.035,96652.0,96648.0,0.3608]
[1736855471656,0.035,96652.0,96651.0,0.051755]
[1736855471657,0.002,96652.0,96651.0,0.051755]
[1736855472245,0.08604854,96653.0,96652.0,0.051755]
[1736855472652,0.3608,96657.0,96656.0,0.051753]
[1736855472852,0.01077915,96661.0,96660.0,0.051751]
[1736855473162,0.24776743,96663.0,96662.0,0.05175]
[1736855473760,0.24776743,96663.0,96653.0,0.10290681]
[1736855473953,0.3608,96666.0,96653.0,0.10290681]
[1736855474151,0.3608,96666.0,96658.0,0.051751]
[1736855474349,0.37136492,96666.0,96653.0,0.10290681]
[1736855474549,0.37136492,96666.0,96665.0,0.051748]
[1736855476359,0.01056492,96666.0,96665.0,0.051748]
[1736855476562,0.13847669,96675.0,96674.0,0.051743]
[1736855477055,0.14899977,96675.0,96674.0,0.051743]
[1736855478156,0.14899977,96675.0,96674.0,0.052743]
[1736855478157,0.22502609,96675.0,96674.0,0.052743]
[1736855478455,0.21450301,96675.0,96674.0,0.413543]
[1736855479158,0.07602632,96675.0,96674.0,0.413543]
[1736855480354,0.2476006,96683.0,96674.0,0.413543]
[1736855480655,0.2476006,96683.0,96676.0,0.051742]
[1736855481163,0.2476006,96683.0,96682.0,0.412539]
[1736855481758,0.01068438,96691.0,96690.0,0.051735]
[1736855481958,0.2476006,96693.0,96690.0,0.051735]
[1736855482458,0.051734,96691.0,96685.0,0.051737]
[1736855482763,0.051734,96691.0,96686.0,0.051737]
[1736855482956,0.2476006,96698.0,96686.0,0.051737]
[1736855483158,0.051732,96696.0,96682.0,0.3608]
[1736855483360,0.051732,96696.0,96690.0,0.008]
[1736855483555,0.412532,96696.0,96690.0,0.008]
[1736855483863,0.051732,96696.0,96690.0,0.008]
[1736855484066,0.3608,96697.0,96686.0,0.003]
[1736855484358,0.26075423,96698.0,96690.0,0.3608]
[1736855485061,0.26075423,96698.0,96696.0,0.051731]
[1736855485265,0.26075423,96698.0,96697.0,0.051731]
[1736855486161,0.01315363,96698.0,96697.0,0.051731]
[1736855486364,0.3608,96705.0,96697.0,0.051731]
[1736855486566,0.37449417,96705.0,96697.0,0.051731]
[1736855486967,0.37449417,96705.0,96695.0,0.10290681]
[1736855487165,0.37449417,96705.0,96701.0,0.051728]
[1736855487363,0.37449417,96705.0,96698.0,0.05173]
[1736855487564,0.37449417,96705.0,96700.0,0.051729]
[1736855488161,0.37449417,96705.0,96704.0,0.051727]
[1736855488763,0.01369417,96705.0,96704.0,0.051727]
[1736855489062,0.32626417,96708.0,96707.0,0.051725]
[1736855489267,0.01649723,96708.0,96707.0,0.051725]
[1736855489456,0.0351,96715.0,96707.0,0.051725]
[1736855490260,0.0351,96715.0,96708.0,0.051725]
[1736855491561,0.15529786,96711.0,96708.0,0.051725]
[1736855491763,0.15529786,96711.0,96708.0,0.052725]
[1736855492466,0.15529786,96711.0,96708.0,0.001]
[1736855492666,0.15529786,96711.0,96710.0,0.051724]
[1736855494367,0.15529786,96711.0,96710.0,0.052724]
[1736855494566,0.15529786,96711.0,96710.0,0.001]
[1736855496465,0.06858741,96711.0,96710.0,0.001]
[1736855501071,0.01686441,96711.0,96710.0,0.001]
[1736855501372,0.07600477,96711.0,96710.0,0.001]
[1736855502071,0.12772777,96711.0,96710.0,0.001]
[1736855502972,0.17522274,96712.0,96710.0,0.001]
[1736855503370,0.001,96711.0,96710.0,0.001]
[1736855503571,0.052723,96711.0,96710.0,0.001]
[1736855504381,0.052723,96711.0,96702.0,0.3608]
[1736855504679,0.052723,96711.0,96710.0,0.001]
[1736855505171,0.001,96711.0,96696.0,0.051731]
[1736855505365,0.3608,96703.0,96680.0,0.10445828]
[1736855505561,0.3608,96695.0,96694.0,0.051732]
[1736855505772,0.3608,96695.0,96680.0,0.00155147]
[1736855505978,0.051733,96693.0,96680.0,0.00155147]
[1736855506171,0.18880681,96694.0,96680.0,0.00155147]
[1736855506172,0.051735,96689.0,96680.0,0.00155147]
[1736855506365,0.051736,96688.0,96680.0,0.00155147]
[1736855507280,0.3608,96685.0,96667.0,0.0456]
[1736855507580,0.3608,96674.0,96667.0,0.097347]
[1736855507775,0.3608,96674.0,96668.0,0.051746]
[1736855508283,0.0428,96673.0,96668.0,0.051746]
[1736855508978,0.0428,96673.0,96670.0,0.051745]
[1736855509368,0.0428,96673.0,96667.0,0.003]
[1736855509574,0.3608,96674.0,96672.0,0.051744]
[1736855509779,0.3608,96674.0,96673.0,0.051744]
[1736855509979,0.3608,96674.0,96668.0,0.051746]
[1736855510583,0.3618,96674.0,96668.0,0.051746]
[1736855510776,0.3618,96674.0,96667.0,0.002]
[1736855511079,0.3618,96674.0,96673.0,0.001]
[1736855511886,0.3618,96674.0,96668.0,0.001]
[1736855512385,0.3618,96674.0,96668.0,0.052746]
[1736855513077,0.3618,96674.0,96668.0,0.001]
[1736855513377,0.3618,96674.0,96663.0,0.051749]
[1736855513568,0.3618,96674.0,96673.0,0.001]
[1736855514275,0.3618,96674.0,96668.0,0.001]
[1736855515678,0.3618,96674.0,96666.0,0.051747]
[1736855516779,0.3618,96674.0,96667.0,0.051747]
[1736855517179,0.3608,96674.0,96667.0,0.051747]
[1736855517376,0.3618,96674.0,96668.0,0.052746]
[1736855518081,0.3618,96674.0,96668.0,0.051746]
[1736855518882,0.3618,96674.0,96661.0,0.0469]
[1736855519087,0.3618,96674.0,96669.0,0.051746]
[1736855520586,0.3618,96674.0,96668.0,0.001]
[1736855521779,0.3608,96674.0,96668.0,0.001]
[1736855521980,0.3618,96674.0,96668.0,0.001]
[1736855522190,0.3618,96674.0,96667.0,0.051747]
[1736855522582,0.3618,96674.0,96668.0,0.051746]
[1736855522886,0.3618,96674.0,96669.0,0.051745]
[1736855523387,0.3608,96674.0,96669.0,0.051745]
[1736855523586,0.3618,96674.0,96669.0,0.051745]
[1736855523982,0.3608,96674.0,96669.0,0.051745]
[1736855524285,0.3618,96674.0,96669.0,0.051745]
[1736855525276,0.3618,96674.0,96670.0,0.051745]
[1736855526085,0.3618,96674.0,96668.0,0.001]
[1736855526485,0.3618,96674.0,96670.0,0.001]
[1736855527286,0.3618,96674.0,96661.0,0.0469]
[1736855527287,0.3618,96674.0,96668.0,0.001]
[1736855527788,0.3618,96674.0,96671.0,0.051745]
[1736855529990,0.3618,96674.0,96671.0,0.052745]
[1736855530187,0.3608,96674.0,96671.0,0.052745]
[1736855530387,0.3618,96674.0,96671.0,0.052745]
[1736855532997,0.3618,96674.0,96671.0,0.001]
[1736855534889,0.3608,96674.0,96671.0,0.052745]
[1736855535090,0.3618,96674.0,96671.0,0.052745]
[1736855536493,0.17197758,96674.0,96671.0,0.001]
[1736855536698,0.17197758,96674.0,96649.0,0.051756]
[1736855536699,0.051746,96668.0,96654.0,0.412554]
[1736855536905,0.1056,96673.0,96654.0,0.412554]
[1736855536906,0.10290681,96664.0,96654.0,0.412554]
[1736855537790,0.101347,96667.0,96654.0,0.412554]
[1736855537995,0.0496,96667.0,96654.0,0.412554]
[1736855538393,0.051748,96665.0,96654.0,0.412554]
[1736855538593,0.051749,96664.0,96654.0,0.412554]
[1736855539188,0.12778846,96664.0,96654.0,0.412554]
[1736855539385,0.12778846,96664.0,96654.0,0.413554]
[1736855539890,0.12878846,96664.0,96654.0,0.412554]
[1736855540091,0.07603946,96663.0,96654.0,0.412554]
[1736855540499,0.12778846,96663.0,96654.0,0.3618]
[1736855540902,0.07603946,96663.0,96654.0,0.3618]
[1736855541089,0.001,96662.0,96646.0,0.3608]
[1736855541291,0.051755,96652.0,96646.0,0.3608]
[1736855541599,0.0525,96651.0,96646.0,0.3608]
[1736855542804,0.12779546,96650.0,96647.0,0.00455197]
[1736855543603,0.12779546,96650.0,96647.0,0.00355197]
[1736855543798,0.32314579,96649.0,96647.0,0.00355197]
[1736855545096,0.32414579,96649.0,96647.0,0.00355197]
[1736855546004,0.07603946,96648.0,96647.0,0.00355197]
[1736855547004,0.24810633,96649.0,96647.0,0.00355197]
[1736855547305,0.24710633,96649.0,96647.0,0.002]
[1736855547500,0.24810633,96649.0,96647.0,0.002]
[1736855547900,0.001,96649.0,96647.0,0.002]
[1736855548211,0.001,96648.0,96647.0,0.002]
[1736855549698,0.0682669,96651.0,96647.0,0.002]
[1736855549903,0.001,96649.0,96647.0,0.002]
[1736855550610,0.001,96648.0,96647.0,0.002]
[1736855551100,0.001,96649.0,96647.0,0.002]
[1736855551305,0.001,96649.0,96646.0,0.3608]
[1736855551604,0.001,96649.0,96647.0,0.002]
[1736855552399,0.001,96649.0,96648.0,0.051757]
[1736855552701,0.051743,96675.0,96648.0,0.051757]
[1736855552702,0.37550606,96664.0,96659.0,0.051751]
[1736855552895,0.01470606,96664.0,96648.0,0.0492]
[1736855553209,0.412548,96666.0,96648.0,0.0492]
[1736855553505,0.412548,96666.0,96657.0,0.051752]
[1736855554302,0.07604352,96665.0,96657.0,0.051752]
[1736855554904,0.07604352,96665.0,96657.0,0.052752]
[1736855555401,0.3618,96666.0,96657.0,0.052752]
[1736855555706,0.3618,96666.0,96657.0,0.001]
[1736855555707,0.0522,96664.0,96657.0,0.001]
[1736855555907,0.103949,96664.0,96657.0,0.001]
[1736855557609,0.412552,96658.0,96657.0,0.001]
[1736855557797,0.3608,96658.0,96657.0,0.001]
[1736855558003,0.3608,96658.0,96650.0,0.051756]
[1736855558608,0.3608,96658.0,96646.0,0.412558]
[1736855559108,0.07604488,96657.0,96646.0,0.412558]
[1736855559299,0.07604488,96657.0,96647.0,0.051757]
[1736855560097,0.07604488,96657.0,96648.0,0.051757]
[1736855561211,0.3608,96658.0,96648.0,0.051757]
[1736855562607,0.051751,96659.0,96648.0,0.051757]
[1736855562809,0.051751,96659.0,96648.0,0.053757]
[1736855564504,0.3608,96657.0,96648.0,0.002]
[1736855565707,0.412552,96657.0,96648.0,0.002]
[1736855566214,0.051752,96657.0,96648.0,0.002]
[1736855567212,0.001,96659.0,96648.0,0.002]
[1736855568114,0.051752,96658.0,96648.0,0.002]
[1736855568613,0.001,96657.0,96650.0,0.3608]
[1736855569715,0.07605337,96656.0,96650.0,0.3608]
[1736855569915,0.07605337,96656.0,96650.0,0.3618]
[1736855571211,0.07605337,96655.0,96650.0,0.3618]
[1736855572415,0.07605337,96654.0,96650.0,0.3618]
[1736855573019,0.07605337,96653.0,96650.0,0.3618]
[1736855574218,0.07605337,96652.0,96650.0,0.3618]
[1736855575017,0.07605337,96651.0,96650.0,0.3618]
[1736855576110,0.24710633,96656.0,96650.0,0.3618]
[1736855578020,0.32315771,96656.0,96650.0,0.3618]
[1736855578220,0.32315771,96656.0,96650.0,0.3608]
[1736855578517,0.32315771,96656.0,96650.0,0.3618]
[1736855579121,0.07605138,96656.0,96650.0,0.3618]
[1736855579712,0.01559029,96657.0,96650.0,0.3618]
[1736855579916,0.001,96655.0,96650.0,0.3618]
[1736855580125,0.001,96656.0,96650.0,0.3618]
[1736855580421,0.20581362,96660.0,96650.0,0.3618]
[1736855580623,0.051755,96651.0,96650.0,0.3618]
[1736855581923,0.1278081,96651.0,96650.0,0.3618]
[1736855588628,0.37575022,96651.0,96650.0,0.3618]
[1736855589529,0.37575022,96651.0,96650.0,0.001]
[1736855589718,0.051763,96637.0,96628.0,0.3608]
[1736855590223,0.051764,96636.0,96628.0,0.3608]
[1736855590726,0.051764,96635.0,96628.0,0.3608]
[1736855590930,0.051764,96635.0,96628.0,0.3668]
[1736855591332,0.051764,96635.0,96628.0,0.3718]
[1736855591731,0.17139659,96634.0,96628.0,0.3718]
[1736855594033,0.00843796,96637.0,96628.0,0.3718]
[1736855594233,0.10290681,96638.0,96628.0,0.3718]
[1736855594734,0.0760671,96636.0,96628.0,0.3718]
[1736855595135,0.0760671,96636.0,96628.0,0.3668]
[1736855595337,0.0760671,96636.0,96628.0,0.3718]
[1736855595528,0.051763,96637.0,96628.0,0.3718]
[1736855597029,0.051763,96637.0,96628.0,0.3668]
[1736855597230,0.051763,96637.0,96628.0,0.3718]
[1736855597630,0.32978778,96637.0,96628.0,0.3718]
[1736855597831,0.32978778,96637.0,96628.0,0.3668]
[1736855598040,0.32978778,96637.0,96628.0,0.3718]
[1736855598739,0.051763,96637.0,96628.0,0.3718]
[1736855600335,0.11755248,96638.0,96628.0,0.3718]
[1736855602131,0.11755248,96638.0,96628.0,0.3658]
[1736855602433,0.11755248,96638.0,96628.0,0.3718]
[1736855603028,0.01464567,96638.0,96637.0,0.3608]
[1736855603236,0.30976694,96643.0,96637.0,0.3608]
[1736855603538,0.32440683,96643.0,96639.0,0.051762]
[1736855604430,0.01463989,96643.0,96639.0,0.051762]
[1736855604630,0.10290681,96650.0,96639.0,0.051762]
[1736855604837,0.10290681,96650.0,96645.0,0.3608]
[1736855605038,0.01845708,96650.0,96645.0,0.3608]
[1736855605329,0.051755,96652.0,96645.0,0.3608]
[1736855605726,0.052755,96652.0,96645.0,0.3608]
[1736855607344,0.052755,96652.0,96645.0,0.3628]
[1736855607944,0.001,96652.0,96645.0,0.3628]
[1736855608236,0.051756,96651.0,96645.0,0.3628]
[1736855608442,0.01923505,96653.0,96645.0,0.002]
[1736855608640,0.412558,96646.0,96645.0,0.002]
[1736855609031,0.413558,96646.0,96645.0,0.002]
[1736855610942,0.051763,96638.0,96627.0,0.0015523]
[1736855611243,0.051769,96626.0,96615.0,0.18595754]
[1736855611441,0.56661362,96637.0,96615.0,0.18595754]
[1736855611442,0.051771,96623.0,96617.0,0.31682455]
[1736855611649,0.10290681,96627.0,96617.0,0.31682455]
[1736855611650,0.051772,96621.0,96617.0,0.31682455]
[1736855611847,0.051773,96619.0,96615.0,0.18595754]
[1736855612237,0.052773,96618.0,96608.0,0.1067]
[1736855612842,0.051772,96620.0,96617.0,0.009]
[1736855613146,0.3608,96621.0,96617.0,0.009]
[1736855613147,0.001,96619.0,96617.0,0.009]
[1736855613341,0.051773,96618.0,96617.0,0.009]
[1736855613847,0.052773,96618.0,96617.0,0.009]
[1736855614340,0.001,96618.0,96605.0,0.3608]
[1736855614644,0.051776,96613.0,96608.0,0.005]
[1736855615046,0.001,96612.0,96605.0,0.3608]
[1736855615345,0.052776,96612.0,96605.0,0.3608]
[1736855615535,0.052776,96612.0,96605.0,0.3668]
[1736855615735,0.051776,96612.0,96605.0,0.3668]
[1736855615933,0.001,96611.0,96605.0,0.3668]
[1736855616146,0.001,96611.0,96608.0,0.005]
[1736855617740,0.001,96611.0,96608.0,0.009]
[1736855618345,0.001,96611.0,96608.0,0.004]
[1736855618941,0.001,96611.0,96608.0,0.009]
[1736855619742,0.001,96614.0,96608.0,0.009]
[1736855620851,0.052776,96614.0,96608.0,0.009]
[1736855621152,0.051776,96613.0,96608.0,0.009]
[1736855621344,0.051776,96613.0,96608.0,0.004]
[1736855621542,0.001,96612.0,96608.0,0.009]
[1736855622249,0.001,96612.0,96608.0,0.005]
[1736855622548,0.10290681,96615.0,96608.0,0.004]
[1736855622747,0.001,96614.0,96608.0,0.009]
[1736855622946,0.001,96614.0,96610.0,0.051777]
[1736855623148,0.10290681,96615.0,96608.0,0.009]
[1736855623344,0.60075927,96621.0,96614.0,0.051775]
[1736855623651,0.60075927,96621.0,96615.0,0.1072]
[1736855624047,0.60075927,96621.0,96615.0,0.158975]
[1736855624551,0.23995927,96621.0,96619.0,0.051772]
[1736855624750,0.23995927,96621.0,96617.0,0.3608]
[1736855624945,0.23995927,96621.0,96620.0,0.051772]
[1736855626053,0.10290681,96630.0,96620.0,0.051772]
[1736855626254,0.10290681,96630.0,96621.0,0.051771]
[1736855626948,0.10290681,96630.0,96622.0,0.051771]
[1736855627260,0.10290681,96630.0,96620.0,0.002]
[1736855627456,0.10290681,96630.0,96622.0,0.051771]
[1736855627658,0.10290681,96630.0,96620.0,0.002]
[1736855627659,0.10290681,96630.0,96624.0,0.05177]
[1736855628154,0.10290681,96630.0,96627.0,0.3608]
[1736855628452,0.3608,96628.0,96621.0,0.002]
[1736855628756,0.001,96627.0,96621.0,0.002]
[1736855628952,0.001,96627.0,96622.0,0.051771]
[1736855629150,0.3608,96628.0,96622.0,0.051771]
[1736855629450,0.07607617,96627.0,96621.0,0.002]
[1736855629651,0.07707617,96627.0,96621.0,0.002]
[1736855630252,0.07607617,96626.0,96618.0,0.051773]
[1736855630458,0.07607617,96626.0,96624.0,0.001]
[1736855631051,0.07607617,96626.0,96623.0,0.05177]
[1736855631265,0.07607617,96625.0,96623.0,0.05177]
[1736855631449,0.07607617,96625.0,96624.0,0.05177]
[1736855631963,0.07607617,96625.0,96624.0,0.05277]
[1736855632459,0.07707617,96625.0,96624.0,0.05277]
[1736855633563,0.07707617,96625.0,96624.0,0.05177]
[1736855633860,0.07707617,96625.0,96624.0,0.05277]
[1736855634044,0.07707617,96625.0,96624.0,0.001]
[1736855635552,0.001,96625.0,96624.0,0.001]
[1736855637662,0.001,96625.0,96624.0,0.05277]
[1736855644049,0.07706662,96625.0,96624.0,0.05277]
[1736855646162,0.001,96625.0,96624.0,0.05277]
[1736855648361,0.07706674,96625.0,96624.0,0.05277]
[1736855651674,0.001,96625.0,96624.0,0.05277]
[1736855654066,0.067565,96634.0,96624.0,0.001]
[1736855654266,0.067565,96634.0,96631.0,0.3608]
[1736855654462,0.28329691,96639.0,96631.0,0.3608]
[1736855654869,0.001,96638.0,96631.0,0.3608]
[1736855655374,0.001,96634.0,96631.0,0.3608]
[1736855656066,0.07606664,96633.0,96631.0,0.3608]
[1736855657071,0.07606664,96632.0,96631.0,0.3608]
[1736855659374,0.07606664,96632.0,96631.0,0.412566]
[1736855659567,0.17141036,96632.0,96631.0,0.412566]
[1736855665875,0.07606664,96632.0,96631.0,0.412566]
[1736855666978,0.48217718,96638.0,96631.0,0.412566]
[1736855667176,0.48217718,96638.0,96631.0,0.3608]
[1736855667380,0.48217718,96638.0,96632.0,0.051766]
[1736855668182,0.07606664,96637.0,96632.0,0.051766]
[1736855669382,0.07606664,96636.0,96632.0,0.051766]
[1736855670680,0.07606664,96635.0,96632.0,0.051766]
[1736855671778,0.07606664,96634.0,96632.0,0.051766]
[1736855672985,0.07606664,96633.0,96632.0,0.051766]
[1736855673679,0.34079594,96646.0,96640.0,0.051761]
[1736855673878,0.34079594,96646.0,96645.0,0.412559]
[1736855674481,0.3687304,96646.0,96645.0,0.412559]
[1736855674877,0.02793446,96646.0,96645.0,0.412559]
[1736855675077,0.00155264,96648.0,96645.0,0.3618]
[1736855675491,0.0964,96647.0,96645.0,0.3618]
[1736855675789,0.0512,96646.0,96645.0,0.3618]
[1736855676185,0.0522,96646.0,96645.0,0.3618]
[1736855676583,0.0502,96646.0,96645.0,0.3618]
[1736855678093,0.0522,96646.0,96645.0,0.3618]
[1736855681501,0.14753586,96646.0,96645.0,0.3618]
[1736855681899,0.07697813,96647.0,96645.0,0.3618]
[1736855682104,0.0361307,96648.0,96645.0,0.413558]
[1736855682303,0.0361307,96648.0,96646.0,0.0453]
[1736855682997,0.0361307,96648.0,96646.0,0.097058]
[1736855684101,0.001,96647.0,96646.0,0.097058]
[1736855684800,0.0361307,96648.0,96646.0,0.098058]
[1736855685001,0.0371307,96648.0,96646.0,0.098058]
[1736855685202,0.0371307,96648.0,96646.0,0.001]
[1736855685700,0.0361307,96648.0,96646.0,0.001]
[1736855687508,0.0371307,96648.0,96646.0,0.001]
[1736855691704,0.07565176,96654.0,96646.0,0.001]
[1736855692312,0.11106217,96654.0,96646.0,0.001]
[1736855693415,0.0953348,96653.0,96646.0,0.001]
[1736855694721,0.0953348,96652.0,96646.0,0.001]
[1736855695108,0.0953348,96651.0,96646.0,0.001]
[1736855696417,0.0953348,96650.0,96646.0,0.001]
[1736855697413,0.0953348,96649.0,96646.0,0.001]
[1736855698523,0.0953348,96648.0,96646.0,0.001]
[1736855699617,0.0953348,96647.0,96645.0,0.3608]
[1736855699809,0.0953348,96647.0,96646.0,0.001]
[1736855700216,0.0953348,96647.0,96645.0,0.3608]
[1736855700416,0.0953348,96647.0,96646.0,0.001]
[1736855700819,0.0953348,96647.0,96645.0,0.3608]